fUSD/lending_fUSD_20240609
["ID","MTS","AMOUNT","RATE_DAILY","PERIOD"]
[328886037,1717959036561,-415.17732812,0.00029,2]
[328886038,1717959036571,-415.17732812,0.00029,2]
[328886039,1717959036580,-415.17732812,0.00029,2]
[328886040,1717959036590,-415.17732812,0.00029,2]
[328886041,1717959036599,-415.17732812,0.00029,2]
[328886042,1717959036610,-415.17732812,0.00029,2]
[328886043,1717959036619,-415.17732812,0.00029,2]
[328886044,1717959036629,-415.17732812,0.00029,2]
[328886045,1717959036639,-415.17732812,0.00029,2]
[328886046,1717959036649,-415.17732812,0.00029,2]
[328886047,1717959036659,-415.17732812,0.00029,2]
[328886048,1717959036669,-415.17732812,0.00029,2]
[328886049,1717959036679,-415.17732812,0.00029,2]
[328886050,1717959036689,-415.17732812,0.00029,2]
[328886051,1717959036699,-415.17732812,0.00029,2]
[328886052,1717959036709,-415.17732812,0.00029,2]
[328886053,1717959036719,-415.17732812,0.00029,2]
[328886054,1717959036728,-415.17732812,0.00029,2]
[328886055,1717959036738,-415.17732812,0.00029,2]
[328886056,1717959036748,-415.17732812,0.00029,2]
[328886057,1717959036758,-415.17732812,0.00029,2]
[328886058,1717959036768,-415.17732812,0.00029,2]
[328886059,1717959036778,-415.17732812,0.00029,2]
[328886060,1717959036788,-415.17732812,0.00029,2]
[328886061,1717959036798,-415.17732812,0.00029,2]
[328886062,1717959036808,-415.17732812,0.00029,2]
[328886063,1717959036817,-415.17732812,0.00029,2]
[328886064,1717959036937,-415.17732812,0.00029,2]
[328886065,1717959036949,-415.17732812,0.00029,2]
[328886066,1717959036961,-415.17732812,0.00029,2]
[328886067,1717959036970,-415.17732812,0.00029,2]
[328886068,1717959036980,-415.17732812,0.00029,2]
[328886069,1717959036992,-415.17732812,0.00029,2]
[328886070,1717959037001,-415.17732812,0.00029,2]
[328886071,1717959037012,-415.17732812,0.00029,2]
[328886072,1717959037022,-415.17732812,0.00029,2]
[328886073,1717959037032,-415.17732812,0.00029,2]
[328886074,1717959037041,-415.17732812,0.00029,2]
[328886075,1717959037051,-415.17732812,0.00029,2]
[328886076,1717959037061,-415.17732812,0.00029,2]
[328886077,1717959037070,-415.17732812,0.00029,2]
[328886078,1717959037079,-415.17732812,0.00029,2]
[328886079,1717959037089,-415.17732812,0.00029,2]
[328886080,1717959037099,-415.17732812,0.00029,2]
[328886081,1717959037109,-415.17732812,0.00029,2]
[328886082,1717959037119,-415.17732812,0.00029,2]
[328886083,1717959037128,-415.17732812,0.00029,2]
[328886084,1717959037138,-415.17732812,0.00029,2]
[328886085,1717959037148,-1499.19944092,0.00029006,15]
[328886086,1717959037158,-156.15411394,0.00029007,2]
[328886087,1717959037167,-446.97972469,0.0002901,2]
[328886088,1717959037177,-500.0,0.0002901,2]
[328886089,1717959037187,-41163.90339946,0.0002901,2]
[328886090,1717959037197,-1891.26712,0.0002901,2]
[328886091,1717959037207,-150.0,0.00029032,2]
[328886092,1717959037216,-151.0,0.00029054,2]
[328886093,1717959037227,-150.25763256,0.00029069,2]
[328886094,1717959037236,-150.0,0.00029092,2]
[328886095,1717959037246,-178.0860018,0.00029098,2]
[328886096,1717959037256,-174.71702799,0.00029098,2]
[328886097,1717959037266,-501.08001338,0.00029098,2]
[328886098,1717959037276,-12430.9905,0.00029098,2]
[328886099,1717959037285,-150.0,0.00029105,2]
[328886100,1717959037295,-164.93371947,0.00029133,2]
[328886101,1717959037305,-150.0,0.00029142,2]
[328886102,1717959037314,-152.0,0.0002915,5]
[328886103,1717959037324,-600.0,0.0002917,2]
[328886104,1717959037334,-117537.4939,0.00029198,2]
[328886105,1717959037343,-3549.8832,0.00029198,2]
[328886106,1717959037352,-22869.6292,0.00029198,2]
[328886107,1717959037362,-1000.0,0.00029198,2]
[328886108,1717959037371,-500.0,0.000292,3]
[328886109,1717959037381,-625.35569721,0.000292,2]
[328886110,1717959037391,-12915.55149619,0.000292,2]
[328886111,1717959037401,-39852.669,0.000292,2]
[328886112,1717959037411,-500.0,0.000292,2]
[328886113,1717959037420,-1000.0,0.000292,2]
[328886114,1717959037430,-160.0,0.000292,2]
[328886115,1717959037440,-10000.0,0.000292,2]
[328886116,1717959037450,-1469.09445681,0.000292,2]
[328886117,1717959037460,-178.0860018,0.000292,2]
[328886118,1717959037469,-162.00616074,0.000292,2]
[328886119,1717959037479,-183.86806516,0.000292,2]
[328886120,1717959037489,-1499.19944092,0.000292,15]
[328886121,1717959037498,-743.11574521,0.000292,7]
[328886122,1717959037510,-743.11574521,0.000292,7]
[328886123,1717959037519,-743.11574521,0.000292,7]
[328886124,1717959037528,-743.11574521,0.000292,7]
[328886125,1717959037538,-743.11574521,0.000292,7]
[328886126,1717959037549,-743.11574521,0.000292,7]
[328886127,1717959037559,-743.11574521,0.000292,7]
[328886128,1717959037569,-743.11574521,0.000292,7]
[328886129,1717959037578,-743.11574521,0.000292,7]
[328886130,1717959037589,-743.11574521,0.000292,7]
[328886131,1717959037598,-743.11574521,0.000292,7]
[328886132,1717959037608,-743.11574521,0.000292,7]
[328886133,1717959037618,-743.11574521,0.000292,7]
[328886134,1717959037628,-743.11574521,0.000292,7]
[328886135,1717959037638,-743.11574521,0.000292,7]
[328886136,1717959037648,-743.11574521,0.000292,7]
[328886137,1717959037658,-743.11574521,0.000292,7]
[328886138,1717959037668,-743.11574521,0.000292,7]
[328886139,1717959037679,-743.11574521,0.000292,7]
[328886140,1717959037688,-743.61,0.000292,7]
[328886141,1717959037698,-2972.53798084,0.000292,7]
[328886142,1717959037708,-2972.53798084,0.000292,7]
[328886143,1717959037717,-2972.53798084,0.000292,7]
[328886144,1717959037727,-2972.53798084,0.000292,7]
[328886145,1717959037737,-2972.53798084,0.000292,7]
[328886146,1717959037746,-2972.53798084,0.000292,7]
[328886147,1717959037758,-2972.53798084,0.000292,7]
[328886148,1717959037768,-2972.53798084,0.000292,7]
[328886149,1717959037778,-2972.53798084,0.000292,7]
[328886150,1717959037787,-2972.53798084,0.000292,7]
[328886151,1717959037797,-2972.53798084,0.000292,7]
[328886152,1717959037808,-2972.53798084,0.000292,7]
[328886153,1717959037818,-2972.53798084,0.000292,7]
[328886154,1717959037829,-2972.53798084,0.000292,7]
[328886155,1717959037840,-2972.53798084,0.000292,7]
[328886156,1717959037851,-2972.53798084,0.000292,7]
[328886157,1717959037861,-2972.53798084,0.000292,7]
[328886158,1717959037871,-330.80153183,0.000292,7]
[328886159,1717959037881,-330.80153183,0.000292,7]
[328886160,1717959037890,-330.80153183,0.000292,7]
[328886161,1717959037900,-330.80153183,0.000292,7]
[328886162,1717959037910,-330.80153183,0.000292,7]
[328886163,1717959037923,-330.80153183,0.000292,7]
[328886164,1717959037933,-330.80153183,0.000292,7]
[328886165,1717959037943,-330.80153183,0.000292,7]
[328886166,1717959037952,-330.80153183,0.000292,7]
[328886167,1717959037963,-330.80153183,0.000292,7]
[328886168,1717959037973,-330.80153183,0.000292,7]
[328886169,1717959037983,-330.80153183,0.000292,7]
[328886170,1717959037994,-330.80153183,0.000292,7]
[328886171,1717959038003,-330.80153183,0.000292,7]
[328886172,1717959038014,-330.80153183,0.000292,7]
[328886173,1717959038024,-330.80153183,0.000292,7]
[328886174,1717959038033,-330.80153183,0.000292,7]
[328886175,1717959038043,-330.80153183,0.000292,7]
[328886176,1717959038053,-330.80153183,0.000292,7]
[328886177,1717959038063,-331.3,0.000292,7]
[328886178,1717959038072,-1323.28112733,0.000292,7]
[328886179,1717959038082,-1323.28112733,0.000292,7]
[328886180,1717959038093,-150.0,0.000292,6]
[328886181,1717959038102,-1323.28112733,0.000292,7]
[328886182,1717959038112,-1323.28112733,0.000292,7]
[328886183,1717959038121,-1323.28112733,0.000292,7]
[328886184,1717959038131,-1323.28112733,0.000292,7]
[328886185,1717959038140,-1323.28112733,0.000292,7]
[328886186,1717959038150,-1323.28112733,0.000292,7]
[328886187,1717959038160,-1323.28112733,0.000292,7]
[328886188,1717959038170,-1323.28112733,0.000292,7]
[328886189,1717959038179,-1323.28112733,0.000292,7]
[328886190,1717959038189,-1323.28112733,0.000292,7]
[328886191,1717959038199,-1323.28112733,0.000292,7]
[328886192,1717959038208,-1323.28112733,0.000292,7]
[328886193,1717959038218,-1323.28112733,0.000292,7]
[328886194,1717959038228,-1323.28112733,0.000292,7]
[328886195,1717959038238,-1323.28112733,0.000292,7]
[328886196,1717959038248,-1380.26406768,0.000292,2]
[328886197,1717959038258,-526.96,0.00029205,3]
[328886198,1717959038267,-8000.0,0.00029234,14]
[328886199,1717959038277,-1469.09445675,0.00029251,2]
[328886200,1717959038287,-150.0,0.00029263,2]
[328886201,1717959038296,-400.0,0.0002927,2]
[328886202,1717959038306,-400.0,0.0002927,2]
[328886203,1717959038316,-4612.8334294,0.00029272,2]
[328886204,1717959038325,-150.0,0.0002928,2]
[328886205,1717959038336,-190.3355555,0.0002928,2]
[328886206,1717959038345,-190.3355555,0.0002928,2]
[328886207,1717959038355,-190.3355555,0.0002928,2]
[328886208,1717959038365,-190.3355555,0.0002928,2]
[328886209,1717959038375,-190.3355555,0.0002928,2]
[328886210,1717959038384,-300.52171246,0.0002929,2]
[328886211,1717959038394,-296.0,0.0002929,15]
[328886212,1717959038404,-150.5,0.0002929,15]
[328886213,1717959038414,-300.52171246,0.0002929,2]
[328886214,1717959038424,-574.4465868,0.00029295,2]
[328886215,1717959038434,-190.3355555,0.00029295,2]
[328886216,1717959038443,-199.2972824,0.00029295,2]
[328886217,1717959038453,-1000.0,0.00029295,2]
[328886218,1717959038463,-1000.0,0.00029295,2]
[328886219,1717959038472,-1000.0,0.00029295,2]
[328886220,1717959038482,-1000.0,0.00029295,2]
[328886221,1717959038492,-1000.0,0.00029295,2]
[328886222,1717959038502,-1000.0,0.00029295,2]
[328886223,1717959038513,-1000.0,0.00029295,2]
[328886224,1717959038523,-1000.0,0.00029295,2]
[328886225,1717959038532,-666.0,0.00029295,2]
[328886226,1717959038542,-301.01734805,0.00029296,2]
[328886227,1717959038552,-514.19340909,0.00029297,2]
[328886228,1717959038562,-201.89437585,0.00029298,2]
[328886229,1717959038572,-1341.99542733,0.00029298,2]
[328886230,1717959038582,-205.56800131,0.00029298,2]
[328886231,1717959038592,-222.1192587,0.00029298,2]
[328886232,1717959038602,-5418.55761792,0.00029298,2]
[328886233,1717959038612,-155.07920597,0.00029298,2]
[328886234,1717959038622,-327.87677653,0.00029298,2]
[328886235,1717959038632,-155.0,0.00029298,2]
[328886236,1717959038642,-155.0,0.00029298,2]
[328886237,1717959038651,-688.42270304,0.00029298,2]
[328886238,1717959038662,-158.2910291,0.00029298,2]
[328886241,1717959038672,-155.28927007,0.00029298,2]
[328886244,1717959038682,-1898.91513286,0.00029298,2]
[328886245,1717959038692,-620.85973177,0.00029298,2]
[328886247,1717959038702,-265.45840376,0.00029298,2]
[328886249,1717959038712,-537.53978765,0.00029298,2]
[328886251,1717959038722,-1271.98730294,0.00029298,2]
[328886253,1717959038732,-296.58359376,0.00029298,2]
[328886255,1717959038742,-237.36772959,0.00029298,2]
[328886257,1717959038752,-268.8327842,0.00029298,2]
[328886259,1717959038765,-155.0,0.00029298,2]
[328886261,1717959038776,-275.96686544,0.00029298,2]
[328886264,1717959038791,-3718.11059868,0.00029298,2]
[328886266,1717959038801,-180.04768497,0.00029298,2]
[328886268,1717959038811,-155.28236147,0.00029298,2]
[328886269,1717959038822,-1427.0560194,0.00029298,7]
[328886271,1717959038833,-155.0,0.00029298,2]
[328886273,1717959038843,-163.21533727,0.00029298,2]
[328886276,1717959038854,-735.84553311,0.00029298,2]
[328886277,1717959038864,-156.4485,0.00029298,2]
[328886279,1717959038874,-235.01777921,0.00029298,2]
[328886281,1717959038885,-155.0,0.00029298,2]
[328886283,1717959038896,-162.55802593,0.00029298,2]
[328886285,1717959038906,-1980.08690757,0.00029298,2]
[328886287,1717959038921,-14655.78368692,0.00029298,2]
[328886289,1717959038932,-155.0,0.00029298,2]
[328886291,1717959038941,-790.20472017,0.00029298,2]
[328886292,1717959038954,-1276.38374304,0.00029298,2]
[328886293,1717959038963,-225.09872018,0.00029298,2]
[328886294,1717959038974,-1500.0,0.00029298,2]
[328886295,1717959038985,-845.75796734,0.00029298,2]
[328886296,1717959038997,-468.40220737,0.00029298,2]
[328886297,1717959039008,-299.29433227,0.00029298,2]
[328886298,1717959039018,-27309.64478769,0.00029298,2]
[328886299,1717959039029,-304.37547342,0.00029298,2]
[328886301,1717959039356,-415.17732812,0.00029,2]
[328886302,1717959039366,-415.17732812,0.00029,2]
[328886303,1717959039377,-465.60400065,0.00029298,2]
[328886304,1717959039389,-621.28822806,0.00029298,2]
[328886305,1717959039401,-1012.82935591,0.00029298,2]
[328886306,1717959039413,-286.18192272,0.00029298,2]
[328886307,1717959039424,-1173.210827,0.00029298,2]
[328886308,1717959039437,-334.50747262,0.00029298,2]
[328886309,1717959039449,-345.5,0.00029298,2]
[328886310,1717959039521,-415.17732812,0.00029,2]
[328886311,1717959039532,-79254.98310188,0.00029298,2]
[328886312,1717959039545,-46966.09492354,0.00029298,2]
[328886313,1717959039556,-1624.71052526,0.00029298,2]
[328886314,1717959039566,-265.97843345,0.00029298,2]
[328886315,1717959039580,-529.75489193,0.00029298,2]
[328886316,1717959039590,-281.11164112,0.00029298,2]
[328886317,1717959039601,-3113.75709605,0.00029299,2]
[328886318,1717959039611,-150.0,0.00029299,2]
[328886319,1717959039621,-297.16536656,0.000293,5]
[328886320,1717959039630,-431002.58877534,0.000293,13]
[328886321,1717959039643,-642.00000005,0.000293,13]
[328886322,1717959039656,-1245.30640348,0.000293,13]
[328886323,1717959039668,-2171.93496323,0.000293,13]
[328886324,1717959039681,-3071.91999903,0.000293,13]
[328886325,1717959039693,-434.33736611,0.000293,13]
[328886326,1717959040305,-1047.10843307,0.0001612,2]
[328886327,1717959040315,-556.09156703,0.00026999,2]
[328886328,1717959040329,-1780.34257889,0.00026999,2]
[328886329,1717959040339,-454.56,0.0002815,2]
[328886330,1717959040349,-415.17732812,0.00029,2]
[328886331,1717959040359,-415.17732812,0.00029,2]
[328886332,1717959040370,-415.17732812,0.00029,2]
[328886333,1717959040380,-415.17732812,0.00029,2]
[328886334,1717959040391,-415.17732812,0.00029,2]
[328886335,1717959040401,-415.17732812,0.00029,2]
[328886336,1717959040412,-415.17732812,0.00029,2]
[328886337,1717959040421,-415.17732812,0.00029,2]
[328886338,1717959040432,-415.17732812,0.00029,2]
[328886339,1717959040442,-415.17732812,0.00029,2]
[328886340,1717959040452,-415.17732812,0.00029,2]
[328886341,1717959040463,-415.17732812,0.00029,2]
[328886342,1717959040473,-415.17732812,0.00029,2]
[328886343,1717959040484,-415.17732812,0.00029,2]
[328886344,1717959040494,-415.17732812,0.00029,2]
[328886345,1717959040505,-415.17732812,0.00029,2]
[328886346,1717959040517,-415.17732812,0.00029,2]
[328886347,1717959040528,-415.17732812,0.00029,2]
[328886348,1717959040538,-37091.90551495,0.000293,13]
[328886349,1717959040552,-669.66679997,0.000293,13]
[328886350,1717959040565,-686.168246,0.000293,13]
[328886351,1717959040606,-8166.6292716,0.000293,13]
[328886352,1717959040621,-351.92,0.000293,13]
[328886353,1717959040635,-4265.10995084,0.000293,13]
[328886354,1717959040648,-8122.06332966,0.000293,13]
[328886355,1717959040661,-3021.85448745,0.000293,13]
[328886356,1717959040675,-1275.69235238,0.000293,13]
[328886357,1717959040687,-5878.821865,0.000293,13]
[328886358,1717959040700,-3645.4670164,0.000293,13]
[328886359,1717959040712,-1975.67449422,0.000293,13]
[328886360,1717959040725,-6660.60552268,0.000293,13]
[328886361,1717959040737,-7067.38519531,0.000293,13]
[328886362,1717959040749,-2203.6673106,0.000293,13]
[328886363,1717959040762,-1019.00622617,0.000293,13]
[328886364,1717959040804,-3332.97664968,0.000293,13]
[328886365,1717959040817,-21139.3457848,0.000293,13]
[328886410,1717959043449,-188.20708037,0.00028581,2]
[328886411,1717959043461,-135.44791963,0.00029298,2]
[328886424,1717959043618,-55.23010201,0.00029298,2]
[328886426,1717959043628,-19859.43802031,0.000293,13]
[328886428,1717959043641,-23984.54265119,0.000293,13]
[328886431,1717959043653,-647.526547,0.000293,13]
[328886436,1717959043666,-739.70005,0.000293,13]
[328886450,1717959043934,-813.36968626,0.000293,13]
[328886451,1717959043948,-212845.57014811,0.000293,13]
[328886452,1717959043959,-2087458.22197898,0.000293,5]
[328886453,1717959043972,-1349.54352705,0.000293,5]
[328886454,1717959043984,-688.35,0.000293,5]
[328886459,1717959044263,-1394.57,0.000293,5]
[328886462,1717959044275,-740.99,0.000293,5]
[328886464,1717959044288,-1271.98730294,0.000293,5]
[328886466,1717959044300,-7653.5161661,0.000293,5]
[328886469,1717959044313,-740.76734568,0.000293,5]
[328886600,1717959045696,-26921.20651016,0.000293,5]
[328886630,1717959046056,-4742.24125208,0.000293,5]
[328886631,1717959046068,-3018.77743687,0.000293,5]
[328886632,1717959046081,-1047.95466654,0.000293,5]
[328886735,1717959046942,-188.20708037,0.000291,2]
[328886736,1717959046954,-7126.19251965,0.000293,5]
[328886737,1717959046967,-26026.4459398,0.000293,5]
[328886759,1717959047197,-261.43306295,0.000293,5]
[328886782,1717959047452,-180.08479821,0.00029298,2]
[328886783,1717959047462,-960.58467835,0.000293,5]
[328886784,1717959047483,-1673.90953421,0.000293,5]
[328886785,1717959047505,-308.43455555,0.000293,5]
[328886786,1717959047527,-7780.98764874,0.000293,5]
[328886787,1717959047736,-1210.83491736,0.00017259,2]
[328886788,1717959047753,-413.37813701,0.00026075,2]
[328886789,1717959047771,-785.42520442,0.00029299,2]
[328886790,1717959047788,-2421.09693153,0.000293,5]
[328886804,1717959710460,-307.41147167,0.00015117,2]
[328886805,1717959710484,-1210.83491736,0.00015117,2]
[328886806,1717959710511,-1103.797115,0.00015118,2]
[328886807,1717959710536,-536.28840969,0.00015193,2]
[328886808,1717959710562,-1302.30583545,0.00015193,2]
[328886809,1717959710586,-1249.15756282,0.00015194,2]
[328886810,1717959710612,-206.00138128,0.00015195,2]
[328886811,1717959710638,-337.61122703,0.00015196,2]
[328886812,1717959710661,-2822.20152753,0.00015293,2]
[328886813,1717959710686,-2370.40737101,0.00015294,2]
[328886814,1717959710713,-1011.62515847,0.00015373,2]
[328886815,1717959710738,-150.0,0.00015734,2]
[328886816,1717959710765,-1540.87811604,0.00015735,2]
[328886817,1717959710789,-5012.2489,0.00015921,2]
[328886818,1717959710811,-1046.14621306,0.0001612,2]
[328886819,1717959710835,-1168.83622353,0.00017256,2]
[328886820,1717959710859,-150.99,0.0001726,2]
[328886821,1717959710882,-1000.0,0.0001726,2]
[328886822,1717959710907,-187.0,0.00017307,2]
[328886823,1717959710931,-431.35090803,0.000185,2]
[328886824,1717959710961,-499.99,0.00019726,2]
[328886825,1717959710986,-1768.0,0.000199,2]
[328886826,1717959711011,-2552.72528865,0.00021975,2]
[328886827,1717959711038,-416.4,0.00024088,2]
[328886828,1717959711065,-160.88,0.00024384,2]
[328886829,1717959711098,-250.0,0.00024539,2]
[328886830,1717959712184,499.99,0.00015921,2]
[328886831,1717959756730,2553.27367181,0.00011941,2]
[328886832,1717959780721,2553.27367181,0.00011941,2]
[328886833,1717959798727,2553.27367181,8.956e-05,2]
[328886834,1717959816731,554.3546445,8.956e-05,2]
[328886835,1717959834909,1046.14621306,0.00015,2]
[328886853,1717960232481,-394.95499992,0.00015195,2]
[328886854,1717960232494,-205.04500008,0.00015195,2]
[328886855,1717960232505,-431.35090803,0.000185,2]
[328886856,1717960232516,-150.0,0.00019725,2]
[328886857,1717960232526,-1768.0,0.000199,2]
[328886858,1717960232535,-569.0,0.000199,2]
[328886859,1717960232545,-1168.83622353,0.00021697,2]
[328886860,1717960232555,-1000.0,0.00021697,2]
[328886861,1717960232565,-150.99,0.00021698,2]
[328886862,1717960232575,-499.99,0.00021698,2]
[328886863,1717960232585,-187.0,0.00021698,2]
[328886864,1717960232595,-177.13,0.00024384,2]
[328886865,1717960232606,-458.39,0.00024655,2]
[328886866,1717960232615,-1250.0,0.00025,2]
[328886867,1717960232625,-4898.71,0.00025299,2]
[328886868,1717960232635,-203.65,0.00025391,2]
[328886869,1717960232646,-4754.9402,0.00025471,2]
[328886870,1717960232656,-196.38,0.00025964,2]
[328886871,1717960232666,-173.22527283,0.00026092,2]
[328886872,1717960232676,-252.96,0.00026209,2]
[328886873,1717960232686,-400.0,0.00026344,2]
[328886874,1717960232696,-758.24390293,0.00026368,2]
[328886875,1717960232707,-173.22527283,0.00026373,2]
[328886876,1717960232717,-200.0,0.00026542,2]
[328886877,1717960232727,-851.94,0.00026559,2]
[328886878,1717960232737,-600.0,0.00026583,2]
[328886879,1717960232747,-10861.95321976,0.0002663,2]
[328886880,1717960232840,-13028.04678024,0.0002663,2]
[328886881,1717960232850,-796.75321976,0.00026756,2]
[328886882,1717960232863,-348.88678024,0.00026756,2]
[328886883,1717960232874,-200.0,0.00026862,2]
[328886884,1717960232885,-250.0,0.00026876,2]
[328886885,1717960232897,-458.39,0.00026919,2]
[328886886,1717960232909,-1273.94,0.00026944,2]
[328886887,1717960232921,-2670.91,0.00027054,2]
[328886888,1717960232931,-173.22527283,0.00027071,2]
[328886889,1717960232942,-173.22527283,0.00027179,2]
[328886890,1717960232953,-154.78346022,0.00027213,2]
[328886891,1717960232964,-153.87703825,0.00027277,2]
[328886892,1717960232974,-150.0,0.00027397,2]
[328886893,1717960232985,-156.89031967,0.00027487,2]
[328886894,1717960232996,-18658.24759152,0.00027667,2]
[328886895,1717960233009,-17811.256461,0.00027667,2]
[328886896,1717960233022,-1143.89630761,0.00027667,2]
[328886897,1717960233036,-6363.99303987,0.00027667,2]
[328886898,1717960233046,-12176.32553708,0.00027741,2]
[328886899,1717960233169,-990.28265183,0.00027741,2]
[328886900,1717960233182,-2663.14551109,0.00027741,2]
[328886901,1717960233192,-158.54105395,0.00027776,2]
[328886902,1717960233202,-165.97750567,0.00027796,2]
[328886903,1717960233212,-1307.58305967,0.00027832,2]
[328886904,1717960233222,-1000.0,0.0002789,2]
[328886905,1717960233233,-154.73985074,0.00027945,2]
[328886906,1717960233243,-172.13,0.00028043,2]
[328886907,1717960233252,-151.10271325,0.00028055,30]
[328886908,1717960233262,-150.0,0.00028118,2]
[328886909,1717960233272,-155.11258733,0.00028244,2]
[328886910,1717960233283,-157.14475479,0.00028356,2]
[328886911,1717960233292,-151.10271325,0.00028384,30]
[328886912,1717960233302,-153.04658946,0.00028423,2]
[328886913,1717960233313,-1335.97512208,0.000285,2]
[328886914,1717960233327,-500.0,0.000285,2]
[328886915,1717960233337,-1582.0,0.000285,2]
[328886916,1717960233348,-157.14475481,0.000287,2]
[328886917,1717960233359,-1060.07951628,0.00028704,2]
[328886918,1717960233369,-151.10271325,0.00028712,30]
[328886919,1717960233379,-173.22527287,0.00028714,2]
[328886920,1717960233391,-150.0,0.00028839,2]
[328886921,1717960233402,-1009.74,0.000289,2]
[328886922,1717960233413,-325.30651287,0.00028924,2]
[328886923,1717960233423,-325.3065128,0.00028955,2]
[328886924,1717960233433,-325.3065128,0.00028985,2]
[328886925,1717960233443,-20249.62120488,0.00029,15]
[328886926,1717960233453,-325.3065128,0.00029016,15]
[328886927,1717960233463,-151.0,0.00029016,7]
[328886928,1717960233473,-20249.62120483,0.00029022,15]
[328886929,1717960233484,-151.10271325,0.00029041,30]
[328886930,1717960233495,-354.23121436,0.00029043,2]
[328886931,1717960233505,-473.81213425,0.00029044,15]
[328886932,1717960233518,-19775.80907058,0.00029044,15]
[328886933,1717960233528,-325.3065128,0.00029047,15]
[328886935,1717960233538,-500.0,0.00029065,2]
[328886937,1717960233548,-200.0,0.00029065,2]
[328886939,1717960233558,-20249.62120483,0.00029067,15]
[328886940,1717960233568,-150.0,0.00029073,2]
[328886942,1717960233578,-150.0,0.00029074,2]
[328886944,1717960233587,-325.3065128,0.00029077,15]
[328886945,1717960233598,-20249.62120483,0.00029089,15]
[328886946,1717960233607,-192.05,0.00029089,3]
[328886947,1717960233617,-41556.591,0.00029099,2]
[328886948,1717960233627,-1705.44881077,0.000291,2]
[328886949,1717960233637,-325.3065128,0.00029108,15]
[328886950,1717960233647,-20249.62120483,0.00029111,15]
[328886951,1717960233657,-1705.44881072,0.00029114,2]
[328886952,1717960233667,-267.0,0.00029118,5]
[328886953,1717960233677,-1705.44881072,0.00029129,2]
[328886954,1717960233688,-20249.62120483,0.00029133,15]
[328886955,1717960233698,-325.3065128,0.00029139,15]
[328886956,1717960233708,-1705.44881072,0.00029143,2]
[328886957,1717960233855,-20249.62120483,0.00029156,15]
[328886958,1717960233866,-150.0,0.00029157,2]
[328886959,1717960233876,-1705.44881072,0.00029157,2]
[328886960,1717960233885,-150.0,0.00029169,2]
[328886961,1717960233896,-325.3065128,0.00029169,15]
[328886962,1717960233906,-1705.44881072,0.00029171,2]
[328886963,1717960233916,-20249.62120483,0.00029178,15]
[328886964,1717960233926,-458.39,0.00029183,2]
[328886965,1717960233935,-1705.44881072,0.00029186,2]
[328886966,1717960233945,-751.9144439,0.00029198,4]
[328886967,1717960233955,-162.00616074,0.00029199,2]
[328886968,1717960233965,-192.38869596,0.00029199,2]
[328886969,1717960233974,-173.30371157,0.00029199,2]
[328886970,1717960233984,-1224.24538068,0.00029199,2]
[328886971,1717960233994,-175.68306126,0.00029199,2]
[328886972,1717960234004,-218.73469509,0.00029199,2]
[328886973,1717960234014,-2142.38589444,0.00029199,2]
[328886974,1717960234023,-1915.09069149,0.00029199,2]
[328886975,1717960234033,-1915.09069148,0.000292,2]
[328886976,1717960234043,-4829.8355,0.000292,2]
[328886977,1717960234053,-2306.07213996,0.000292,2]
[328886978,1717960234064,-325.3065128,0.000292,15]
[328886979,1717960234074,-1705.44881072,0.000292,2]
[328886980,1717960234084,-162.10217614,0.000292,7]
[328886981,1717960234094,-162.10217614,0.000292,7]
[328886982,1717960234104,-162.10217614,0.000292,7]
[328886983,1717960234114,-162.10217614,0.000292,7]
[328886984,1717960234123,-162.10217614,0.000292,7]
[328886985,1717960234133,-162.10217614,0.000292,7]
[328886986,1717960234143,-162.10217614,0.000292,7]
[328886987,1717960234153,-162.10217614,0.000292,7]
[328886988,1717960234163,-162.10217614,0.000292,7]
[328886989,1717960234172,-162.10217614,0.000292,7]
[328886990,1717960234182,-162.6,0.000292,7]